fUSD/lending_fUSD_20260527
["ID","MTS","AMOUNT","RATE_DAILY","PERIOD"]
[423103253,1779851433000,-427.58,0.00033064,7]
[423103226,1779851433000,-427.58,0.00030882,7]
[423103224,1779851433000,-160.84,0.0003073,2]
[423103225,1779851433000,-931.0,0.00030812,2]
[423103222,1779851433000,-1330.81211534,0.000306,2]
[423103227,1779851433000,-1330.81211534,0.000309,2]
[423103229,1779851433000,-233.43335116,0.00031181,7]
[423103230,1779851433000,-213.13909119,0.00031181,7]
[423103240,1779851433000,-427.58,0.00031609,2]
[423103233,1779851433000,-338.32892556,0.00031181,2]
[423103231,1779851433000,-473.4719811,0.00031181,2]
[423103234,1779851433000,-184.8778881,0.00031181,2]
[423103254,1779851433000,-460.98,0.00033316,2]
[423103232,1779851433000,-236.60698335,0.00031181,7]
[423103239,1779851433000,-707.04,0.0003153,2]
[423103237,1779851433000,-166.66,0.00031242,30]
[423103236,1779851433000,-188.27,0.00031205,2]
[423103250,1779851433000,-742.24,0.00033025,30]
[423103245,1779851433000,-644.882,0.00032306,32]
[423103248,1779851433000,-220.0,0.00032775,2]
[423103235,1779851433000,-1330.81211534,0.000312,2]
[423103251,1779851433000,-707.04,0.00033026,30]
[423103243,1779851433000,-194.25778936,0.00032,120]
[423103249,1779851433000,-448.51514651,0.00033,120]
[423103247,1779851433000,-188.27,0.00032691,2]
[423103252,1779851433000,-151.0,0.00033064,5]
[423103246,1779851433000,-427.58,0.00032337,30]
[423103244,1779851433000,-166.66,0.00032266,30]
[423103241,1779851433000,-175.99507839,0.00032,120]
[423103242,1779851433000,-448.51514651,0.00032,120]
[423103285,1779851434000,-247.25198602,0.00034261,60]
[423103284,1779851434000,-150.0,0.00034261,60]
[423103286,1779851434000,-252.74801398,0.00034261,60]
[423103289,1779851434000,-46.45486661,0.00034261,60]
[423103287,1779851434000,-150.0,0.00034261,2]
[423103291,1779851434000,-500.0,0.00034261,60]
[423103290,1779851434000,-453.54513339,0.00034261,60]
[423103294,1779851434000,-80.15749403,0.00034261,60]
[423103293,1779851434000,-500.0,0.00034261,60]
[423103292,1779851434000,-500.0,0.00034261,60]
[423103288,1779851434000,-250.0,0.00034261,60]
[423103322,1779851438000,-707.04,0.00034521,7]
[423103313,1779851438000,-150.0,0.00034261,30]
[423103314,1779851438000,-150.0,0.00034261,30]
[423103308,1779851438000,-500.0,0.00034261,60]
[423103305,1779851438000,-500.0,0.00034261,60]
[423103307,1779851438000,-500.0,0.00034261,60]
[423103306,1779851438000,-500.0,0.00034261,60]
[423103303,1779851438000,-500.0,0.00034261,60]
[423103304,1779851438000,-500.0,0.00034261,60]
[423103302,1779851438000,-500.0,0.00034261,60]
[423103300,1779851438000,-500.0,0.00034261,60]
[423103312,1779851438000,-150.0,0.00034261,30]
[423103311,1779851438000,-170.12492049,0.00034261,60]
[423103301,1779851438000,-500.0,0.00034261,60]
[423103299,1779851438000,-500.0,0.00034261,60]
[423103298,1779851438000,-419.84250597,0.00034261,60]
[423103297,1779851438000,-1414.3236377,0.00029387,10]
[423103296,1779851438000,-870.6563623,0.00029387,10]
[423103295,1779851438000,-186.63,0.00024658,2]
[423103309,1779851438000,-500.0,0.00034261,60]
[423103319,1779851438000,-169.74,0.00034453,120]
[423103310,1779851438000,-500.0,0.00034261,60]
[423103321,1779851438000,-427.65,0.0003452,30]
[423103320,1779851438000,-742.24,0.0003452,7]
[423103337,1779851438000,-2875.77558268,0.00036705,2]
[423103336,1779851438000,-178.9325073,0.00036705,2]
[423103330,1779851438000,-150.0,0.000363,30]
[423103331,1779851438000,-660.00535688,0.00036397,5]
[423103328,1779851438000,-742.24,0.00036016,2]
[423103327,1779851438000,-707.04,0.00036016,2]
[423103332,1779851438000,-7990.0,0.000364,30]
[423103323,1779851438000,-460.99732886,0.00034982,2]
[423103329,1779851438000,-529.36523563,0.00036247,2]
[423103326,1779851438000,-448.51514651,0.00036,120]
[423103335,1779851438000,-2500.0,0.00036705,2]
[423103333,1779851438000,-1386.86,0.000367,2]
[423103338,1779851438000,-500.0,0.000368,13]
[423103334,1779851438000,-200.0,0.000367,13]
[423103324,1779851438000,-448.51514651,0.00035,120]
[423103318,1779851438000,-529.36523563,0.00034362,2]
[423103316,1779851438000,-144.29106416,0.00034261,30]
[423103317,1779851438000,-257.00612891,0.00034261,30]
[423103315,1779851438000,-5.70893584,0.00034261,30]
[423103325,1779851438000,-529.36523563,0.00035304,2]
[423103339,1779851439000,-500.0,0.00036804,30]
[423103340,1779851439000,-500.0,0.00036804,2]
[423103342,1779851439000,-249.0,0.00036805,5]
[423103345,1779851439000,-31172.46049043,0.00036805,2]
[423103343,1779851439000,-250.0,0.00036805,30]
[423103341,1779851439000,-500.0,0.00036804,2]
[423103344,1779851439000,-188161.8560313,0.00036805,2]
[423103395,1779851443000,-270.55877202,0.00036805,2]
[423103394,1779851443000,-152.0,0.00028955,7]
[423103393,1779851443000,-165.61939799,0.000288,2]
[423103392,1779851443000,-165.61939799,0.000286,2]
[423103403,1779851446000,-1904.15,0.00036795,10]
[423103402,1779851446000,-165.61939799,0.000291,2]
[423103405,1779851446000,-3472.81979069,0.00036805,2]
[423103404,1779851446000,-1124.90591518,0.00036805,2]
[423103406,1779851447000,-804.35,0.00036805,2]
[423103503,1779851531000,280.33334832,0.00010133,2]
[423103502,1779851531000,219.66665168,0.00010133,2]
[423103522,1779852284000,-351.34508059,0.00010486,2]
[423103523,1779852305000,150.0,9.616e-05,2]
[423103524,1779852305000,150.0,9.75e-05,2]
[423103526,1779852305000,150.0,0.00010017,2]
[423103525,1779852305000,150.0,9.884e-05,2]
[423103527,1779852305000,150.0,0.00010151,2]
[423103528,1779852316000,-150.0,0.00010284,2]
[423103529,1779852316000,-150.0,0.00010418,2]
[423103531,1779852316000,-150.0,0.00010551,2]
[423103533,1779852316000,-442.3205589,0.00010699,2]
[423103532,1779852316000,-233.44353509,0.00010685,2]
[423103530,1779852316000,-164.55991941,0.00010486,2]
[423103535,1779852316000,-276.23130564,0.00010699,2]
[423103536,1779852316000,-500.0,0.00010699,2]
[423103537,1779852316000,-601.98344568,0.00010699,2]
[423103539,1779852316000,-500.0,0.00010699,2]
[423103538,1779852316000,-460.99990066,0.00010699,2]
[423103534,1779852316000,-500.0,0.00010699,2]
[423103547,1779852317000,-500.0,0.00010699,2]
[423103540,1779852317000,-500.0,0.00010699,2]
[423103542,1779852317000,-500.0,0.00010699,2]
[423103541,1779852317000,-500.0,0.00010699,2]
[423103543,1779852317000,-500.0,0.00010699,2]
[423103544,1779852317000,-500.0,0.00010699,2]
[423103546,1779852317000,-500.0,0.00010699,2]
[423103548,1779852317000,-500.0,0.00010699,2]
[423103545,1779852317000,-500.0,0.00010699,2]
[423103549,1779852317000,-500.0,0.00010699,2]
[423103551,1779852317000,-500.0,0.00010699,2]
[423103552,1779852317000,-500.0,0.00010699,2]
[423103554,1779852317000,-500.0,0.00010699,2]
[423103555,1779852317000,-360.4523663,0.00010699,2]
[423103556,1779852317000,-500.0,0.00010699,2]
[423103557,1779852317000,-3479228.18182048,0.000107,2]
[423103550,1779852317000,-399.98259087,0.00010699,2]
[423103553,1779852317000,-500.0,0.00010699,2]
[423103558,1779852322000,150.00000001,9.616e-05,2]
[423103560,1779852322000,150.0,0.00010151,2]
[423103561,1779852322000,150.0,0.00010685,2]
[423103559,1779852322000,150.0,9.616e-05,2]
[423103563,1779852392000,-164.26463287,0.00013099,2]
[423103562,1779852392000,-153.44265318,0.00013099,2]
[423103667,1779852631000,-272.885916,0.000148,2]
[423103665,1779852631000,-250.0,0.00014629,2]
[423103659,1779852631000,-303.64604252,0.00014409,2]
[423103662,1779852631000,-208.10395452,0.00014427,2]
[423103661,1779852631000,-295.90921303,0.00014409,2]
[423103664,1779852631000,-165.38965849,0.00014629,2]
[423103658,1779852631000,-300.0,0.00014409,2]
[423103660,1779852631000,-300.0,0.00014409,2]
[423103652,1779852631000,-300.0,0.00014408,2]
[423103657,1779852631000,-300.0,0.00014409,2]
[423103663,1779852631000,-3761.92,0.00014591,2]
[423103656,1779852631000,-300.0,0.00014409,2]
[423103666,1779852631000,-307.8669,0.000147,2]
[423103653,1779852631000,-300.0,0.00014408,2]
[423103654,1779852631000,-605.579139,0.00014409,2]
[423103651,1779852631000,-1200.0,0.00014408,2]
[423103648,1779852631000,-266.07103257,0.0001421,7]
[423103647,1779852631000,-208.19770891,0.0001421,7]
[423103650,1779852631000,-300.0,0.00014408,2]
[423103645,1779852631000,-150.0,0.00013796,2]
[423103649,1779852631000,-1233.9396,0.00014308,2]
[423103646,1779852631000,-249.0,0.00013932,2]
[423103643,1779852631000,-350.61,0.00013655,2]
[423103641,1779852631000,-150.0,0.000129,2]
[423103644,1779852631000,-300.77595751,0.00013755,2]
[423103642,1779852631000,-178.93250729,0.00013299,2]
[423103655,1779852631000,-300.0,0.00014409,2]
[423103669,1779852631000,-257.885915,0.000148,2]
[423103668,1779852631000,-260.885915,0.000148,2]
[423103673,1779852631000,-500.0,0.00014999,2]
[423103672,1779852631000,-150.0,0.00014998,2]
[423103701,1779852631000,-1059.45582836,0.00014999,2]
[423103699,1779852631000,-1059.45582836,0.00014999,2]
[423103695,1779852631000,-1059.45582836,0.00014999,2]
[423103693,1779852631000,-1059.45582836,0.00014999,2]
[423103692,1779852631000,-1059.45582836,0.00014999,2]
[423103697,1779852631000,-1059.45582836,0.00014999,2]
[423103688,1779852631000,-1059.45582836,0.00014999,2]
[423103694,1779852631000,-1059.45582836,0.00014999,2]
[423103691,1779852631000,-1059.45582836,0.00014999,2]
[423103689,1779852631000,-1059.45582836,0.00014999,2]
[423103681,1779852631000,-1059.45582836,0.00014999,2]
[423103685,1779852631000,-1059.45582836,0.00014999,2]
[423103690,1779852631000,-1059.45582836,0.00014999,2]
[423103684,1779852631000,-1059.45582836,0.00014999,2]
[423103687,1779852631000,-1059.45582836,0.00014999,2]
[423103671,1779852631000,-167.19015429,0.0001497,2]
[423103674,1779852631000,-1059.45582836,0.00014999,2]
[423103675,1779852631000,-1059.45582836,0.00014999,2]
[423103676,1779852631000,-1059.45582836,0.00014999,2]
[423103677,1779852631000,-1059.45582836,0.00014999,2]
[423103670,1779852631000,-632.53316039,0.000149,2]
[423103680,1779852631000,-1059.45582836,0.00014999,2]
[423103679,1779852631000,-1059.45582836,0.00014999,2]
[423103682,1779852631000,-1059.45582836,0.00014999,2]
[423103683,1779852631000,-1059.45582836,0.00014999,2]
[423103686,1779852631000,-1059.45582836,0.00014999,2]
[423103678,1779852631000,-1059.45582836,0.00014999,2]
[423103721,1779852632000,-788.15387341,0.00014999,2]
[423103723,1779852632000,-1059.45582836,0.00014999,2]
[423103720,1779852632000,-271.30195495,0.00014999,2]
[423103719,1779852632000,-1059.45582836,0.00014999,2]
[423103705,1779852632000,-1059.45582836,0.00014999,2]
[423103707,1779852632000,-1059.45582836,0.00014999,2]
[423103714,1779852632000,-1059.45582836,0.00014999,2]
[423103718,1779852632000,-1059.45582836,0.00014999,2]
[423103717,1779852632000,-1059.45582836,0.00014999,2]
[423103716,1779852632000,-1059.45582836,0.00014999,2]
[423103710,1779852632000,-1059.45582836,0.00014999,2]
[423103712,1779852632000,-1059.45582836,0.00014999,2]
[423103703,1779852632000,-1059.45582836,0.00014999,2]
[423103724,1779852632000,-1059.45582836,0.00014999,2]
[423103730,1779852632000,-1059.45582836,0.00014999,2]
[423103726,1779852632000,-295.15611655,0.00014999,2]
[423103737,1779852632000,-1059.45582836,0.00014999,2]
[423103722,1779852632000,-1059.45582836,0.00014999,2]
[423103738,1779852632000,-126.00700485,0.00014999,2]
[423103735,1779852632000,-1059.45582836,0.00014999,2]
[423103739,1779852632000,-514.62729366,0.00014999,2]
[423103736,1779852632000,-1059.45582836,0.00014999,2]
[423103731,1779852632000,-1059.45582836,0.00014999,2]
[423103734,1779852632000,-617.997917,0.00014999,2]
[423103732,1779852632000,-1059.45582836,0.00014999,2]
[423103729,1779852632000,-1059.45582836,0.00014999,2]
[423103725,1779852632000,-1059.45582836,0.00014999,2]
[423103727,1779852632000,-764.29971181,0.00014999,2]
[423103728,1779852632000,-1059.45582836,0.00014999,2]
[423103733,1779852632000,-441.45791136,0.00014999,2]
[423103761,1779852637000,-1053.87974506,0.00014999,2]
[423103754,1779852637000,-1053.87974506,0.00014999,2]
[423103755,1779852637000,-1053.87974506,0.00014999,2]
[423103757,1779852637000,-1053.87974506,0.00014999,2]
[423103753,1779852637000,-1053.87974506,0.00014999,2]
[423103760,1779852637000,-1053.87974506,0.00014999,2]
[423103758,1779852637000,-1053.87974506,0.00014999,2]
[423103751,1779852637000,-1053.87974506,0.00014999,2]
[423103759,1779852637000,-1053.87974506,0.00014999,2]
[423103752,1779852637000,-1053.87974506,0.00014999,2]
[423103749,1779852637000,-1053.87974506,0.00014999,2]
[423103745,1779852637000,-1053.87974506,0.00014999,2]
[423103746,1779852637000,-1053.87974506,0.00014999,2]
[423103748,1779852637000,-1053.87974506,0.00014999,2]
[423103750,1779852637000,-1053.87974506,0.00014999,2]
[423103742,1779852637000,-1053.87974506,0.00014999,2]
[423103744,1779852637000,-1053.87974506,0.00014999,2]
[423103743,1779852637000,-1053.87974506,0.00014999,2]
[423103741,1779852637000,-413.24544655,0.00014999,2]
[423103740,1779852637000,-2274.14026462,0.000149,2]
[423103763,1779852637000,-1053.87974506,0.00014999,2]
[423103747,1779852637000,-1053.87974506,0.00014999,2]
[423103762,1779852637000,-1053.87974506,0.00014999,2]
[423103771,1779852637000,-488.79259112,0.00014999,2]
[423103764,1779852637000,-1053.87974506,0.00014999,2]
[423103756,1779852637000,-1053.87974506,0.00014999,2]
[423103782,1779852637000,-500.0,0.00014999,2]
[423103785,1779852637000,-500.0,0.00014999,2]
[423103784,1779852637000,-500.0,0.00014999,2]
[423103780,1779852637000,-1053.87974504,0.00014999,2]
[423103787,1779852637000,-500.0,0.00014999,2]
[423103786,1779852637000,-500.0,0.00014999,2]
[423103783,1779852637000,-500.0,0.00014999,2]
[423103781,1779852637000,-1053.87974504,0.00014999,2]
[423103779,1779852637000,-1053.87974504,0.00014999,2]
[423103777,1779852637000,-1053.87974504,0.00014999,2]
[423103778,1779852637000,-1053.87974504,0.00014999,2]
[423103770,1779852637000,-500.0,0.00014999,2]
[423103769,1779852637000,-1053.87974506,0.00014999,2]
[423103765,1779852637000,-1053.87974506,0.00014999,2]
[423103776,1779852637000,-1053.87974504,0.00014999,2]
[423103766,1779852637000,-1053.87974506,0.00014999,2]
[423103775,1779852637000,-1053.87974504,0.00014999,2]
[423103772,1779852637000,-500.0,0.00014999,2]
[423103768,1779852637000,-1053.87974506,0.00014999,2]
[423103767,1779852637000,-1053.87974506,0.00014999,2]
[423103773,1779852637000,-1053.87974504,0.00014999,2]
[423103774,1779852637000,-1053.87974504,0.00014999,2]
[423103814,1779852638000,-500.0,0.00014999,2]
[423103817,1779852638000,-500.0,0.00014999,2]
[423103810,1779852638000,-500.0,0.00014999,2]
[423103807,1779852638000,-500.0,0.00014999,2]
[423103811,1779852638000,-500.0,0.00014999,2]
[423103806,1779852638000,-500.0,0.00014999,2]
[423103813,1779852638000,-500.0,0.00014999,2]
[423103812,1779852638000,-500.0,0.00014999,2]
[423103820,1779852638000,-500.0,0.00014999,2]
[423103821,1779852638000,-627.90179553,0.00014999,2]
[423103819,1779852638000,-500.0,0.00014999,2]
[423103818,1779852638000,-500.0,0.00014999,2]
[423103823,1779852638000,-500.0,0.00014999,2]
[423103829,1779852638000,-500.0,0.00014999,2]
[423103825,1779852638000,-500.0,0.00014999,2]
[423103808,1779852638000,-500.0,0.00014999,2]
[423103822,1779852638000,-500.0,0.00014999,2]
[423103804,1779852638000,-500.0,0.00014999,2]
[423103799,1779852638000,-500.0,0.00014999,2]
[423103815,1779852638000,-500.0,0.00014999,2]
[423103788,1779852638000,-500.0,0.00014999,2]
[423103789,1779852638000,-476.93548067,0.00014999,2]
[423103790,1779852638000,-500.0,0.00014999,2]
[423103793,1779852638000,-500.0,0.00014999,2]
[423103794,1779852638000,-500.0,0.00014999,2]
[423103798,1779852638000,-500.0,0.00014999,2]
[423103802,1779852638000,-500.0,0.00014999,2]
[423103803,1779852638000,-500.0,0.00014999,2]
[423103792,1779852638000,-500.0,0.00014999,2]
[423103797,1779852638000,-500.0,0.00014999,2]
[423103795,1779852638000,-500.0,0.00014999,2]
[423103801,1779852638000,-500.0,0.00014999,2]
[423103796,1779852638000,-500.0,0.00014999,2]
[423103791,1779852638000,-500.0,0.00014999,2]
[423103800,1779852638000,-500.0,0.00014999,2]
[423103805,1779852638000,-500.0,0.00014999,2]
[423103816,1779852638000,-500.0,0.00014999,2]
[423103809,1779852638000,-500.0,0.00014999,2]
[423103830,1779852638000,-500.0,0.00014999,2]
[423103828,1779852638000,-500.0,0.00014999,2]
[423103824,1779852638000,-500.0,0.00014999,2]
[423103847,1779852638000,-500.0,0.00014999,2]
[423103850,1779852638000,-500.0,0.00014999,2]
[423103851,1779852638000,-500.0,0.00014999,2]
[423103846,1779852638000,-500.0,0.00014999,2]
[423103855,1779852638000,-500.0,0.00014999,2]
[423103857,1779852638000,-150.0,0.00014999,2]
[423103863,1779852638000,-1293.56815637,0.00015,2]
[423103861,1779852638000,-325.09476266,0.00015,2]
[423103865,1779852638000,-353.21445168,0.00015,2]
[423103858,1779852638000,-500.0,0.00014999,2]
[423103856,1779852638000,-500.0,0.00014999,2]
[423103859,1779852638000,-500.0,0.00014999,2]
[423103860,1779852638000,-97116.25145185,0.00015,2]
[423103864,1779852638000,-668.03,0.00015,2]
[423103867,1779852638000,-5865.0,0.00015,2]
[423103866,1779852638000,-582.43275662,0.00015,2]
[423103827,1779852638000,-500.0,0.00014999,2]
[423103849,1779852638000,-500.0,0.00014999,2]
[423103848,1779852638000,-500.0,0.00014999,2]
[423103862,1779852638000,-11386.47383062,0.00015,2]
[423103854,1779852638000,-500.0,0.00014999,2]
[423103845,1779852638000,-500.0,0.00014999,2]
[423103832,1779852638000,-500.0,0.00014999,2]
[423103835,1779852638000,-500.0,0.00014999,2]
[423103834,1779852638000,-500.0,0.00014999,2]
[423103838,1779852638000,-500.0,0.00014999,2]
[423103831,1779852638000,-500.0,0.00014999,2]
[423103833,1779852638000,-500.0,0.00014999,2]
[423103836,1779852638000,-500.0,0.00014999,2]
[423103826,1779852638000,-500.0,0.00014999,2]
[423103840,1779852638000,-500.0,0.00014999,2]
[423103839,1779852638000,-500.0,0.00014999,2]
[423103842,1779852638000,-500.0,0.00014999,2]
[423103852,1779852638000,-500.0,0.00014999,2]
[423103853,1779852638000,-500.0,0.00014999,2]
[423103844,1779852638000,-500.0,0.00014999,2]
[423103843,1779852638000,-500.0,0.00014999,2]
[423103841,1779852638000,-500.0,0.00014999,2]
[423103837,1779852638000,-500.0,0.00014999,2]
[423103869,1779852639000,-8947.21879473,0.00015,2]
[423103868,1779852639000,-8862.9485675,0.00015,2]
[423103872,1779852639000,-3237.54315196,0.00015,2]
[423103870,1779852639000,-8943.78386462,0.00015,2]
[423103873,1779852639000,-403.90514072,0.00015,2]
[423103871,1779852639000,-9077.54866152,0.00015,2]
[423103875,1779852640000,-351.36911912,0.00015,2]
[423103876,1779852640000,-1517.64,0.000153,2]
[423103874,1779852640000,-1376.44718892,0.00015,2]
[423103878,1779852640000,-420.0,0.00015778,2]
[423103877,1779852640000,-178.32,0.00015758,2]
[423103883,1779852640000,-684.905344,0.0001611,15]
[423103881,1779852640000,-160.0,0.00016,14]
[423103882,1779852640000,-1314.7308621,0.0001611,15]
[423103879,1779852640000,-2272.14874462,0.00015807,2]
[423103884,1779852640000,-1316.34810885,0.0001611,15]
[423103880,1779852640000,-1680.0,0.00015849,2]
[423103897,1779852643000,-304.0,0.00016181,2]
[423103894,1779852643000,-2853.48445354,0.0001611,15]
[423103896,1779852643000,-799.47176983,0.00016181,2]
[423103895,1779852643000,-566.72823017,0.0001611,15]
[423103908,1779852645000,-154.0,0.00017016,2]
[423103917,1779852645000,-189.77072,0.0001778,2]
[423103907,1779852645000,-1544.0,0.00017016,2]
[423103902,1779852645000,-260.89644384,0.00016181,2]
[423103900,1779852645000,-449.61710532,0.00016181,2]
[423103903,1779852645000,-200.0,0.0001634,2]
[423103905,1779852645000,-1544.0,0.00017016,2]
[423103901,1779852645000,-760.21692186,0.00016181,2]
[423103911,1779852645000,-76.22932466,0.00017279,2]
[423103906,1779852645000,-1544.0,0.00017016,2]
[423103909,1779852645000,-154.0,0.00017016,2]
[423103904,1779852645000,-1544.0,0.00017016,2]
[423103918,1779852645000,-150.0,0.00017812,2]
[423103923,1779852645000,-2274.14026456,0.00018386,2]
[423103922,1779852645000,-1107.33566896,0.000179,2]
[423103910,1779852645000,-801.0,0.00017162,2]
[423103924,1779852645000,-3457.41038295,0.00018712,2]
[423103921,1779852645000,-1107.33566896,0.000179,2]
[423103920,1779852645000,-1107.33566896,0.000179,2]
[423103919,1779852645000,-1107.33566899,0.000179,2]
[423103914,1779852645000,-433.12397786,0.00017434,2]
[423103916,1779852645000,-166.66,0.00017706,2]
[423103912,1779852645000,-109.77067534,0.00017279,2]
[423103913,1779852645000,-632.53316039,0.00017312,2]
[423103915,1779852645000,-766.87602214,0.00017434,2]
[423103943,1779852684000,803.25,0.00027853,120]
[423103944,1779852727000,10746.941396,7.945e-05,2]
[423103952,1779852987000,276.91,0.00010661,2]
[423103951,1779852987000,276.91,0.00010128,2]
[423103962,1779853438000,167.26,0.00028028,120]
[423104026,1779853741000,1000.0,0.00028027,120]
[423104027,1779853742000,154.64,6.843e-05,2]
[423104028,1779853742000,154.64,7.465e-05,2]
[423104029,1779853742000,154.64,8.087e-05,2]
[423104030,1779853742000,154.64,8.709e-05,2]
[423104033,1779853743000,154.64,0.00010575,2]
[423104032,1779853743000,154.64,9.953e-05,2]
[423104031,1779853743000,154.64,9.331e-05,2]
[423104058,1779853831000,-8410.68678388,0.00013289,2]
[423104057,1779853831000,-310.8,0.00013289,2]
[423104056,1779853831000,-4205.51321612,0.00013289,2]
[423104055,1779853831000,-154.64,0.00013063,2]
[423104053,1779853831000,-154.64,0.00012441,2]
[423104054,1779853831000,-276.91,0.00012794,2]
[423104051,1779853831000,-154.64,0.00011819,2]
[423104059,1779853831000,-150.0,0.00013299,7]
[423104050,1779853831000,-276.91,0.00011727,2]
[423104049,1779853831000,-154.64,0.00011197,2]
[423104047,1779853831000,-181.60771692,0.00010859,2]
[423104048,1779853831000,-276.91,0.00011194,2]
[423104046,1779853831000,-150.0,0.00010859,2]
[423104052,1779853831000,-276.91,0.00012261,2]
[423104060,1779853831000,-12127.0,0.00013315,2]
[423104063,1779853831000,-227.0,0.00013619,2]
[423104062,1779853831000,-9644.59,0.00013541,2]
[423104061,1779853831000,-276.91,0.00013327,2]
[423104078,1779853831000,-885.53,0.00014156,2]
[423104073,1779853831000,-2294.0,0.00013869,2]
[423104071,1779853831000,-276.91,0.0001386,2]
[423104075,1779853831000,-180.53,0.00013949,2]
[423104074,1779853831000,-2854.0,0.00013871,2]
[423104070,1779853831000,-166.74,0.00013834,2]
[423104079,1779853831000,-1852.42,0.00014212,2]
[423104069,1779853831000,-885.53,0.0001381,2]
[423104068,1779853831000,-152.49798757,0.0001376,2]
[423104067,1779853831000,-38019.78,0.00013722,2]
[423104077,1779853831000,-150.0,0.00014025,2]
[423104065,1779853831000,-300.0,0.00013721,2]
[423104066,1779853831000,-1200.0,0.00013721,2]
[423104076,1779853831000,-250.0,0.00014,2]
[423104064,1779853831000,-154.64,0.00013685,2]
[423104113,1779853832000,-8349.4538248,0.00015781,2]
[423104115,1779853832000,-3584.76269681,0.00015781,2]
[423104103,1779853832000,-166.66,0.00015328,2]
[423104107,1779853832000,-167.01,0.00015587,2]
[423104105,1779853832000,-276.91,0.00015459,2]
[423104120,1779853832000,-500.0,0.00015879,2]
[423104123,1779853832000,-500.0,0.00015879,2]
[423104119,1779853832000,-500.0,0.00015879,2]
[423104122,1779853832000,-165.42139901,0.00015879,2]
[423104126,1779853832000,-500.0,0.00015879,2]
[423104127,1779853832000,-500.0,0.00015879,2]
[423104131,1779853832000,-500.0,0.00015879,2]
[423104101,1779853832000,-885.53,0.00015191,2]
[423104121,1779853832000,-441.88172007,0.00015879,2]
[423104111,1779853832000,-19743.59450687,0.00015781,2]
[423104087,1779853832000,-167.26,0.00014713,2]
[423104109,1779853832000,-255.0,0.00015618,2]
[423104099,1779853832000,-420.0,0.00015036,2]
[423104097,1779853832000,-276.91,0.00014926,2]
[423104095,1779853832000,-627.04,0.00014874,2]
[423104093,1779853832000,-885.53,0.00014846,2]
[423104089,1779853832000,-167.94,0.00014788,2]
[423104081,1779853832000,-276.91,0.00014393,2]
[423104085,1779853832000,-166.66,0.00014561,2]
[423104091,1779853832000,-150.0,0.00014815,2]
[423104084,1779853832000,-150.0,0.00014501,2]
[423104082,1779853832000,-510.3,0.00014461,2]
[423104083,1779853832000,-885.53,0.00014501,2]
[423104080,1779853832000,-811.1,0.00014279,2]
[423104125,1779853832000,-500.0,0.00015879,2]
[423104117,1779853832000,-500.0,0.00015879,2]
[423104124,1779853832000,-500.0,0.00015879,2]
[423104129,1779853832000,-500.0,0.00015879,2]
[423104130,1779853832000,-500.0,0.00015879,2]
[423104149,1779853832000,-500.0,0.0001588,2]
[423104152,1779853832000,-500.0,0.0001588,2]
[423104151,1779853832000,-1099.64347239,0.0001588,5]
[423104150,1779853832000,-308.09781147,0.0001588,2]
[423104153,1779853832000,-199.0,0.0001588,2]
[423104157,1779853832000,-20722.09755294,0.00015881,2]
[423104148,1779853832000,-500.0,0.0001588,2]
[423104154,1779853832000,-66014.84598397,0.00015881,2]
[423104156,1779853832000,-31697.55670617,0.00015881,2]
[423104158,1779853832000,-500.0,0.00015879,2]
[423104159,1779853832000,-148.73496734,0.00015879,2]
[423104160,1779853832000,-351.26503266,0.00015879,2]
[423104162,1779853832000,-335.51508029,0.00015881,2]